[Event "EWIRCC 2019"]
[Site "Monte-Carlo"]
[Date "2019.12.01"]
[Round "7.18"]
[White "Reizniece-Ozola, Dana"]
[Black "Unuk, Laura"]
[Result "0-1"]
[ECO "A18"]
[WhiteElo "2305"]
[BlackElo "2298"]
[Annotator "NA"]
[PlyCount "70"]
[EventDate "2019.11.28"]
[EventType "swiss"]
[EventCountry "MNC"]
[SourceTitle "playchess.com"]
[Source "ChessBase"]
[SourceQuality "1"]
[TimeControl "5400+30"]

1. c4 {[%emt 1:15:11]} Nf6 {[%emt 1:15:13]} 2. Nc3 {[%emt 0:00:21]} e6 {[%emt 0:00:21]} 3. e4 {[%emt 0:00:22]} d5 {[%emt 0:00:22]} 4. e5 {[%emt 0:00:22]} d4 {[%emt 0:00:37]} 5. exf6 {[%emt 0:00:22]} dxc3 {[%emt 0:00:22]} 6. bxc3 {[%emt 0:00:21]} Qxf6 {[%emt 0:00:22]} 7. Nf3 {[%emt 0:00:25]} e5 {[%emt 0:00:22]} 8. Be2 {[%emt 0:00:38]} Nc6 {[%emt 0:01:04]} 9. d3 {[%emt 0:00:33]} h6 {[%emt 0:00:40]} 10. Rb1 {[%emt 0:00:31]} e4 {[%emt 0:01:03]} 11. dxe4 {[%emt 0:00:28]} Qxc3+ {[%emt 0:00:22]} 12. Bd2 {[%emt 0:00:23]} Qf6 {[%emt 0:00:32]} 13. O-O {[%emt 0:00:45]} Bc5 {[%emt 0:00:22]} 14. Ne1 {[%emt 0:04:03]} O-O {[%emt 0:01:27]} 15. Nd3 {[%emt 0:00:23]} Bd4 {[%emt 0:00:33]} 16. Nf4 {[%emt 0:00:24]} b6 {[%emt 0:01:52]} 17. Nd5 {[%emt 0:00:34]} Qd6 {[%emt 0:00:23]} 18. Kh1 {[%emt 0:00:56]} f5 {[%emt 0:00:51]} 19. exf5 {[%emt 0:01:22]} Bxf5 {[%emt 0:00:27]} 20. Rb3 {[%emt 0:00:58]} Rad8 {[%emt 0:01:20]} 21. Bc1 {[%emt 0:01:25]} Be4 {[%emt 0:03:27]} 22. f3 {[%emt 0:00:59]} Bg6 {[%emt 0:01:07]} 23. Ba3 {[%emt 0:01:40]} Bc5 {[%emt 0:00:45]} 24. Bb2 {[%emt 0:00:22]} Na5 {[%emt 0:02:08]} 25. Qa1 {[%emt 0:03:56]} Nxb3 {[%emt 0:00:43]} 26. axb3 {[%emt 0:00:21]} Rf7 {[%emt 0:01:25]} 27. Rd1 {[%emt 0:01:03]} Qf8 {[%emt 0:00:30]} 28. Be5 {[%emt 0:01:57]} c6 {[%emt 0:00:57]} 29. Nc3 {[%emt 0:00:53]} Rxd1+ {[%emt 0:00:49]} 30. Qxd1 {[%emt 0:00:22]} Qe8 {[%emt 0:00:24]} 31. f4 {[%emt 0:00:23]} Rd7 {[%emt 0:00:33]} 32. Qa1 {[%emt 0:00:22]} Bd4 {[%emt 0:00:43]} 33. Bg4 {[%emt 0:00:56]} Rd8 {[%emt 0:01:01]} 34. Bxd4 {[%emt 0:00:51]} Rxd4 {[%emt 0:00:21]} 35. Nd5 {[%emt 0:00:36]} Re4 {[%emt 0:00:52]} 0-1

[Event "EWIRCC 2019"]
[Site "Monte-Carlo"]
[Date "2019.12.01"]
[Round "7.19"]
[White "Belenkaya, Dina"]
[Black "Benmesbah, Natacha"]
[Result "1-0"]
[ECO "B70"]
[WhiteElo "2302"]
[BlackElo "2265"]
[Annotator "NA"]
[PlyCount "139"]
[EventDate "2019.11.28"]
[EventType "swiss"]
[EventCountry "MNC"]
[SourceTitle "playchess.com"]
[Source "ChessBase"]
[SourceQuality "1"]
[TimeControl "5400+30"]

1. e4 {[%emt 1:15:13]} c5 {[%emt 1:15:10]} 2. Nc3 {[%emt 0:00:22]} Nc6 {[%emt 0:00:21]} 3. Nge2 {[%emt 0:00:24]} g6 {[%emt 0:00:22]} 4. d4 {[%emt 0:00:28]} cxd4 {[%emt 0:00:21]} 5. Nxd4 {[%emt 0:00:21]} Bg7 {[%emt 0:00:21]} 6. Nf3 {[%emt 0:00:26]} d6 {[%emt 0:00:35]} 7. Bc4 {[%emt 0:00:25]} Nf6 {[%emt 0:00:22]} 8. h3 {[%emt 0:00:22]} O-O {[%emt 0:00:24]} 9. O-O {[%emt 0:00:24]} Bd7 {[%emt 0:01:51]} 10. Re1 {[%emt 0:00:38]} Rc8 {[%emt 0:00:21]} 11. Bb3 {[%emt 0:00:37]} Na5 {[%emt 0:01:28]} 12. Nd5 {[%emt 0:01:21]} Nxb3 {[%emt 0:00:41]} 13. axb3 {[%emt 0:00:33]} a6 {[%emt 0:00:52]} 14. c3 {[%emt 0:00:30]} e6 {[%emt 0:01:13]} 15. Nxf6+ {[%emt 0:00:49]} Bxf6 {[%emt 0:00:41]} 16. Qxd6 {[%emt 0:00:56]} Bc6 {[%emt 0:00:25]} 17. Qb4 {[%emt 0:04:55]} Qd3 {[%emt 0:02:17]} 18. e5 {[%emt 0:02:50]} Bg7 {[%emt 0:00:22]} 19. Nd4 {[%emt 0:00:45]} Bd5 {[%emt 0:02:33]} 20. Bg5 {[%emt 0:01:08]} h6 {[%emt 0:02:13]} 21. Rad1 {[%emt 0:00:50]} Qxd1 {[%emt 0:01:52]} 22. Rxd1 {[%emt 0:00:21]} hxg5 {[%emt 0:00:21]} 23. c4 {[%emt 0:01:16]} Be4 {[%emt 0:00:56]} 24. f3 {[%emt 0:00:48]} Bc6 {[%emt 0:01:46]} 25. Nxc6 {[%emt 0:00:23]} bxc6 {[%emt 0:00:21]} 26. Qc5 {[%emt 0:00:34]} Rfd8 {[%emt 0:00:43]} 27. Rd6 {[%emt 0:01:06]} Kh7 {[%emt 0:00:55]} 28. Kf1 {[%emt 0:01:29]} Rb8 {[%emt 0:01:15]} 29. Rxd8 {[%emt 0:00:45]} Rxd8 {[%emt 0:00:21]} 30. Ke2 {[%emt 0:00:34]} Rb8 {[%emt 0:00:21]} 31. b4 {[%emt 0:01:24]} Bf8 {[%emt 0:00:51]} 32. Qa7 {[%emt 0:00:50]} Rxb4 {[%emt 0:00:22]} 33. Qxf7+ {[%emt 0:00:23]} Bg7 {[%emt 0:00:21]} 34. Qxe6 {[%emt 0:00:44]} Rxb2+ {[%emt 0:00:24]} 35. Kd3 {[%emt 0:00:24]} a5 {[%emt 0:00:48]} 36. Qxc6 {[%emt 0:01:12]} Bxe5 {[%emt 0:00:29]} 37. Qd5 {[%emt 0:00:43]} Bf6 {[%emt 0:00:45]} 38. Qf7+ {[%emt 0:00:50]} Bg7 {[%emt 0:00:21]} 39. c5 {[%emt 0:00:23]} a4 {[%emt 0:00:29]} 40. Qa7 {[%emt 0:00:39]} Rb3+ {[%emt 0:00:27]} 41. Kc4 {[%emt 0:00:31]} Rc3+ {[%emt 0:00:23]} 42. Kd5 {[%emt 0:00:28]} a3 {[%emt 0:00:30]} 43. c6 {[%emt 0:00:22]} Rd3+ {[%emt 0:00:28]} 44. Ke6 {[%emt 0:00:23]} Rc3 {[%emt 0:00:35]} 45. Kd7 {[%emt 0:00:21]} Rd3+ {[%emt 0:00:29]} 46. Kc8 {[%emt 0:00:23]} Rc3 {[%emt 0:00:33]} 47. Kd7 {[%emt 0:00:54]} Rd3+ {[%emt 0:00:24]} 48. Ke6 {[%emt 0:00:23]} Rc3 {[%emt 0:00:25]} 49. Kd5 {[%emt 0:00:24]} Kh6 {[%emt 0:00:49]} 50. Qa8 {[%emt 0:00:51]} Kh7 {[%emt 0:03:23]} 51. Kd6 {[%emt 0:00:29]} Rc2 {[%emt 0:00:00]} 52. c7 {[%emt 0:00:49]} a2 {[%emt 0:00:00]} 53. c8=Q {[%emt 0:00:37]} Rxc8 {[%emt 0:00:00]} 54. Qxa2 {[%emt 0:00:22]} Rb8 {[%emt 0:00:00]} 55. Ke6 {[%emt 0:00:31]} Rb2 {[%emt 0:00:00]} 56. Qa8 {[%emt 0:00:23]} Rb6+ {[%emt 0:00:00]} 57. Ke7 {[%emt 0:00:24]} Kh6 {[%emt 0:00:44]} 58. Kf7 {[%emt 0:00:28]} Rf6+ {[%emt 0:00:21]} 59. Kg8 {[%emt 0:00:26]} Rf4 {[%emt 0:00:32]} 60. Qe8 {[%emt 0:00:21]} Rb4 {[%emt 0:01:21]} 61. Qc8 {[%emt 0:00:25]} Rf4 {[%emt 0:00:29]} 62. Qd8 {[%emt 0:00:30]} Rf5 {[%emt 0:01:03]} 63. Qe7 {[%emt 0:00:28]} Rf8+ {[%emt 0:00:33]} 64. Qxf8 {[%emt 0:00:22]} Bxf8 {[%emt 0:00:21]} 65. Kxf8 {[%emt 0:00:22]} Kh7 {[%emt 0:00:51]} 66. Kf7 {[%emt 0:00:21]} Kh6 {[%emt 0:00:21]} 67. Kg8 {[%emt 0:00:23]} Kh5 {[%emt 0:00:47]} 68. Kg7 {[%emt 0:00:29]} g4 {[%emt 0:00:55]} 69. hxg4+ {[%emt 0:00:27]} Kg5 {[%emt 0:00:21]} 70. Kf7 {[%emt 0:00:28]} 1-0

[Event "EWIRCC 2019"]
[Site "Monte-Carlo"]
[Date "2019.12.01"]
[Round "7.20"]
[White "Babiy, Olga"]
[Black "Zvereva, Marija"]
[Result "1-0"]
[ECO "B23"]
[WhiteElo "2249"]
[BlackElo "2154"]
[Annotator "NA"]
[PlyCount "28"]
[EventDate "2019.11.28"]
[EventType "swiss"]
[EventCountry "MNC"]
[SourceTitle "playchess.com"]
[Source "ChessBase"]
[SourceQuality "1"]
[TimeControl "5400+30"]

1. e4 {[%emt 1:15:12]} c5 {[%emt 1:16:08]} 2. Nc3 {[%emt 0:00:30]} Nc6 {[%emt 0:00:24]} 3. Nge2 {[%emt 0:00:23]} e5 {[%emt 0:01:10]} 4. Nd5 {[%emt 0:00:27]} Nf6 {[%emt 0:00:41]} 5. Nec3 {[%emt 0:00:22]} d6 {[%emt 0:01:48]} 6. Bc4 {[%emt 0:00:30]} Be7 {[%emt 0:00:55]} 7. d3 {[%emt 0:00:26]} h6 {[%emt 0:00:49]} 8. O-O {[%emt 0:00:24]} O-O {[%emt 0:00:31]} 9. a4 {[%emt 0:00:51]} Nd4 {[%emt 0:00:51]} 10. f4 {[%emt 0:00:28]} exf4 {[%emt 0:03:28]} 11. Bxf4 {[%emt 0:00:26]} Ng4 {[%emt 0:00:36]} 12. Nxe7+ {[%emt 0:03:59]} Qxe7 {[%emt 0:00:23]} 13. Nd5 {[%emt 0:00:22]} Qd8 {[%emt 0:00:47]} 14. c3 {[%emt 0:00:21]} Nc6 {[%emt 0:00:38]} 1-0

[Event "EWIRCC 2019"]
[Site "Monte-Carlo"]
[Date "2019.12.01"]
[Round "8.1"]
[White "Girya, Olga"]
[Black "Batsiashvili, Nino"]
[Result "1-0"]
[ECO "E18"]
[WhiteElo "2476"]
[BlackElo "2422"]
[Annotator "ChessBase"]
[PlyCount "115"]
[EventDate "2019.11.28"]
[EventType "swiss"]
[EventCountry "MNC"]
[SourceTitle "playchess.com"]
[Source "ChessBase"]
[SourceQuality "1"]
[TimeControl "5400+30"]

1. d4 {[%emt 1:15:11]} Nf6 {[%emt 1:15:11]} 2. c4 {[%emt 0:00:21]} e6 {[%emt 0:00:21]} 3. Nf3 {[%emt 0:00:23]} b6 {[%emt 0:00:21]} 4. g3 {[%emt 0:00:21]} Bb7 {[%emt 0:00:21]} 5. Bg2 {[%emt 0:00:22]} Be7 {[%emt 0:00:23]} 6. O-O {[%emt 0:00:23]} O-O {[%emt 0:00:22]} 7. Nc3 {[%emt 0:00:23]} Ne4 {[%emt 0:00:21]} 8. Bd2 {[%emt 0:00:22]} d6 {[%emt 0:00:21]} 9. Qc2 {[%emt 0:00:21]} Nxd2 {[%emt 0:00:23]} 10. Nxd2 {[%emt 0:00:22]} Nc6 {[%emt 0:00:37]} 11. e3 {[%emt 0:01:45]} Qc8 {[%emt 0:00:48]} 12. a3 {[%emt 0:00:43]} a5 {[%emt 0:00:32]} 13. f4 {[%emt 0:01:02]} f5 {[%emt 0:00:38]} 14. d5 {[%emt 0:00:47]} Nd8 {[%emt 0:00:39]} 15. e4 {[%emt 0:00:48]} Bf6 {[%emt 0:00:45]} 16. Kh1 {[%emt 0:02:31]} c6 {[%emt 0:00:39]} 17. dxe6 {[%emt 0:01:26]} Nxe6 {[%emt 0:00:29]} 18. exf5 {[%emt 0:00:23]} Nd4 {[%emt 0:00:21]} 19. Qd3 {[%emt 0:00:21]} Nxf5 {[%emt 0:00:33]} 20. Nde4 {[%emt 0:00:55]} Be7 {[%emt 0:01:53]} 21. Rfe1 {[%emt 0:00:21]} Qd7 {[%emt 0:00:32]} 22. Rad1 {[%emt 0:01:34]} Rad8 {[%emt 0:00:32]} 23. Na4 {[%emt 0:01:09]} d5 {[%emt 0:02:49]} 24. cxd5 {[%emt 0:01:02]} cxd5 {[%emt 0:00:22]} 25. Nxb6 {[%emt 0:01:22]} Qc7 {[%emt 0:02:15]} 26. Qb3 {[%emt 0:00:57]} a4 {[%emt 0:00:47]} 27. Nxa4 {[%emt 0:00:28]} Kh8 {[%emt 0:00:29]} 28. Rc1 {[%emt 0:04:16]} Qb8 {[%emt 0:02:26]} 29. Nec5 {[%emt 0:00:32]} Bc6 {[%emt 0:00:24]} 30. Qxb8 {[%emt 0:00:29]} Rxb8 {[%emt 0:00:21]} 31. g4 {[%emt 0:01:57]} Bxc5 {[%emt 0:00:27]} 32. Nxc5 {[%emt 0:00:34]} Nh4 {[%emt 0:00:30]} 33. Ne6 {[%emt 0:00:35]} Rfc8 {[%emt 0:02:55]} 34. Nd4 {[%emt 0:00:29]} Bb7 {[%emt 0:00:52]} 35. f5 {[%emt 0:00:53]} h6 {[%emt 0:00:37]} 36. Kg1 {[%emt 0:00:42]} Rc4 {[%emt 0:01:33]} 37. Rcd1 {[%emt 0:01:20]} Rf8 {[%emt 0:02:45]} 38. b3 {[%emt 0:00:35]} Rc3 {[%emt 0:00:32]} 39. Rc1 {[%emt 0:00:36]} Rd3 {[%emt 0:00:36]} 40. Red1 {[%emt 0:00:21]} Re3 {[%emt 0:00:50]} 41. Kf2 {[%emt 0:00:26]} Rfe8 {[%emt 0:00:44]} 42. Rc7 {[%emt 0:00:41]} Nxg2 {[%emt 0:00:54]} 43. Kxg2 {[%emt 0:00:23]} Ba6 {[%emt 0:00:20]} 44. Kf2 {[%emt 0:00:42]} Rh3 {[%emt 0:00:43]} 45. Ne6 {[%emt 0:00:34]} Rxh2+ {[%emt 0:00:44]} 46. Kg3 {[%emt 0:00:22]} Rb2 {[%emt 0:00:27]} 47. Rxd5 {[%emt 0:00:42]} Rxb3+ {[%emt 0:01:06]} 48. Kf4 {[%emt 0:00:21]} Rxa3 {[%emt 0:00:00]} 49. Rdd7 {[%emt 0:00:23]} Ra4+ {[%emt 0:00:20]} 50. Kg3 {[%emt 0:00:26]} Ra3+ {[%emt 0:00:23]} 51. Kf2 {[%emt 0:00:30]} Ra2+ {[%emt 0:00:28]} 52. Kg3 {[%emt 0:00:43]} Ra3+ {[%emt 0:00:20]} 53. Kh4 {[%emt 0:00:32]} Bc8 {[%emt 0:01:07]} 54. Rxg7 {[%emt 0:00:36]} Bxe6 {[%emt 0:00:21]} 55. Rh7+ {[%emt 0:00:23]} Kg8 {[%emt 0:00:21]} 56. Rcg7+ {[%emt 0:00:28]} Kf8 {[%emt 0:00:20]} 57. f6 {[%emt 0:00:29]} Bg8 {[%emt 0:00:59]} 58. Rh8 {[%emt 0:00:25]} 1-0

[Event "EWIRCC 2019"]
[Site "Monte-Carlo"]
[Date "2019.12.01"]
[Round "8.2"]
[White "Rogule, Laura"]
[Black "Osmak, Iulija"]
[Result "1-0"]
[ECO "E08"]
[WhiteElo "2293"]
[BlackElo "2401"]
[Annotator "NA"]
[PlyCount "105"]
[EventDate "2019.11.28"]
[EventType "swiss"]
[EventCountry "MNC"]
[SourceTitle "playchess.com"]
[Source "ChessBase"]
[SourceQuality "1"]
[TimeControl "5400+30"]

1. c4 {[%emt 1:15:12]} e6 {[%emt 1:15:14]} 2. Nf3 {[%emt 0:00:28]} Nf6 {[%emt 0:00:23]} 3. g3 {[%emt 0:00:33]} d5 {[%emt 0:00:25]} 4. d4 {[%emt 0:00:23]} c6 {[%emt 0:00:31]} 5. Bg2 {[%emt 0:01:14]} Be7 {[%emt 0:00:21]} 6. O-O {[%emt 0:00:30]} O-O {[%emt 0:00:22]} 7. Qc2 {[%emt 0:00:52]} b6 {[%emt 0:00:21]} 8. cxd5 {[%emt 0:01:12]} cxd5 {[%emt 0:00:24]} 9. Bf4 {[%emt 0:02:39]} Nbd7 {[%emt 0:01:08]} 10. Rc1 {[%emt 0:02:49]} Ba6 {[%emt 0:00:56]} 11. Nc3 {[%emt 0:00:27]} b5 {[%emt 0:00:55]} 12. a4 {[%emt 0:02:09]} Qb6 {[%emt 0:01:22]} 13. axb5 {[%emt 0:01:25]} Bxb5 {[%emt 0:00:22]} 14. Nxb5 {[%emt 0:00:39]} Qxb5 {[%emt 0:00:22]} 15. Ne5 {[%emt 0:03:21]} Nxe5 {[%emt 0:01:16]} 16. Bxe5 {[%emt 0:01:02]} a5 {[%emt 0:01:38]} 17. e3 {[%emt 0:00:29]} Qd7 {[%emt 0:04:57]} 18. Qa4 {[%emt 0:00:57]} Qxa4 {[%emt 0:00:58]} 19. Rxa4 {[%emt 0:00:21]} Bb4 {[%emt 0:00:46]} 20. Raa1 {[%emt 0:01:12]} Nd7 {[%emt 0:00:36]} 21. Bf4 {[%emt 0:00:34]} Rfc8 {[%emt 0:01:01]} 22. Bf1 {[%emt 0:00:27]} Bd2 {[%emt 0:01:00]} 23. Rxc8+ {[%emt 0:02:35]} Rxc8 24. Bd3 {[%emt 0:00:00]} f6 {[%emt 0:01:04]} 25. Kf1 {[%emt 0:00:00]} Bb4 {[%emt 0:00:26]} 26. g4 {[%emt 0:00:23]} h6 {[%emt 0:00:50]} 27. Ke2 {[%emt 0:00:34]} Kf7 {[%emt 0:00:24]} 28. f3 {[%emt 0:00:40]} Nb6 {[%emt 0:00:44]} 29. e4 {[%emt 0:00:33]} Ke7 {[%emt 0:00:39]} 30. h4 {[%emt 0:00:36]} Rc6 {[%emt 0:04:31]} 31. e5 {[%emt 0:00:43]} fxe5 {[%emt 0:00:59]} 32. Bxe5 {[%emt 0:00:22]} Kf7 {[%emt 0:00:26]} 33. Bf4 {[%emt 0:00:45]} Rc8 {[%emt 0:00:40]} 34. g5 {[%emt 0:00:30]} hxg5 {[%emt 0:00:25]} 35. hxg5 {[%emt 0:00:28]} Nd7 {[%emt 0:00:49]} 36. g6+ {[%emt 0:00:33]} Ke7 {[%emt 0:00:24]} 37. Rh1 {[%emt 0:00:29]} Nf6 {[%emt 0:00:30]} 38. Bg5 {[%emt 0:00:11]} Bd6 {[%emt 0:00:30]} 39. Rh7 {[%emt 0:00:29]} Rg8 {[%emt 0:00:22]} 40. Ke3 {[%emt 0:00:48]} Bc7 {[%emt 0:00:28]} 41. f4 {[%emt 0:00:33]} Bd8 {[%emt 0:00:25]} 42. Rh1 {[%emt 0:00:31]} Kd6 {[%emt 0:00:23]} 43. Rc1 {[%emt 0:00:26]} Nd7 {[%emt 0:00:51]} 44. Bb5 {[%emt 0:00:28]} Bxg5 {[%emt 0:00:29]} 45. fxg5 {[%emt 0:00:29]} Rb8 {[%emt 0:00:30]} 46. Ba4 {[%emt 0:00:43]} Rb4 {[%emt 0:00:41]} 47. b3 {[%emt 0:00:28]} Rb6 {[%emt 0:00:30]} 48. Rc8 {[%emt 0:00:23]} Rb7 {[%emt 0:00:23]} 49. Rd8 {[%emt 0:00:32]} Ke7 {[%emt 0:00:23]} 50. Rg8 {[%emt 0:00:22]} Kd6 {[%emt 0:00:42]} 51. Rxg7 {[%emt 0:00:23]} Rc7 {[%emt 0:00:31]} 52. Rxd7+ {[%emt 0:00:24]} Rxd7 {[%emt 0:00:22]} 53. Bxd7 {[%emt 0:00:22]} 1-0

[Event "EWIRCC 2019"]
[Site "Monte-Carlo"]
[Date "2019.12.01"]
[Round "8.3"]
[White "Kosteniuk, Alexandra"]
[Black "Muzychuk, Mariya"]
[Result "1-0"]
[ECO "B22"]
[WhiteElo "2483"]
[BlackElo "2552"]
[Annotator "ChessBase"]
[PlyCount "97"]
[EventDate "2019.11.28"]
[EventType "swiss"]
[EventCountry "MNC"]
[SourceTitle "playchess.com"]
[Source "ChessBase"]
[SourceQuality "1"]
[TimeControl "5400+30"]

1. e4 {[%emt 1:15:12]} c5 {[%emt 1:15:10]} 2. c3 {[%emt 0:00:21]} Nf6 {[%emt 0:00:39]} 3. e5 {[%emt 0:00:22]} Nd5 {[%emt 0:00:21]} 4. Nf3 {[%emt 0:00:21]} d6 {[%emt 0:00:22]} 5. Bc4 {[%emt 0:00:52]} dxe5 {[%emt 0:00:52]} 6. Nxe5 {[%emt 0:00:39]} Qd6 {[%emt 0:00:49]} 7. d4 {[%emt 0:00:27]} Be6 {[%emt 0:01:15]} 8. O-O {[%emt 0:02:34]} cxd4 {[%emt 0:00:56]} 9. Qxd4 {[%emt 0:00:52]} Nc6 {[%emt 0:01:15]} 10. Nxc6 {[%emt 0:00:23]} Qxc6 {[%emt 0:00:52]} 11. Bb3 {[%emt 0:01:38]} Nc7 {[%emt 0:00:45]} 12. c4 {[%emt 0:01:27]} Qd7 {[%emt 0:03:10]} 13. Qe3 {[%emt 0:00:42]} b6 {[%emt 0:03:38]} 14. Qf3 {[%emt 0:03:26]} O-O-O {[%emt 0:00:58]} 15. Nc3 {[%emt 0:01:41]} Qd3 {[%emt 0:02:20]} 16. Be3 {[%emt 0:00:43]} Qf5 {[%emt 0:00:22]} 17. Qxf5 {[%emt 0:01:02]} Bxf5 {[%emt 0:00:21]} 18. c5 {[%emt 0:00:20]} bxc5 {[%emt 0:00:49]} 19. Bxc5 {[%emt 0:00:22]} Kb8 {[%emt 0:00:47]} 20. Bxf7 {[%emt 0:00:30]} e6 {[%emt 0:00:35]} 21. Bxf8 {[%emt 0:01:19]} Rhxf8 {[%emt 0:00:21]} 22. Bh5 {[%emt 0:00:22]} Rd2 {[%emt 0:00:30]} 23. b3 {[%emt 0:01:35]} Bd3 {[%emt 0:00:55]} 24. Rad1 {[%emt 0:00:26]} Rxd1 {[%emt 0:01:10]} 25. Rxd1 {[%emt 0:00:21]} Bf5 {[%emt 0:00:31]} 26. Bf3 {[%emt 0:00:24]} e5 {[%emt 0:00:27]} 27. Kf1 {[%emt 0:01:35]} Ne6 {[%emt 0:00:51]} 28. Rd5 {[%emt 0:00:23]} Nd4 {[%emt 0:00:27]} 29. Ne4 {[%emt 0:01:59]} Nxf3 {[%emt 0:01:42]} 30. gxf3 {[%emt 0:00:22]} Bh3+ {[%emt 0:00:22]} 31. Ke2 {[%emt 0:00:24]} Bg2 {[%emt 0:00:31]} 32. Nd2 {[%emt 0:00:26]} Rf5 {[%emt 0:00:29]} 33. Rd7 {[%emt 0:00:25]} Rg5 {[%emt 0:00:31]} 34. h4 {[%emt 0:00:46]} Rg6 {[%emt 0:00:28]} 35. Re7 {[%emt 0:00:25]} Ra6 {[%emt 0:00:45]} 36. a4 {[%emt 0:00:22]} Rh6 {[%emt 0:00:33]} 37. Rxg7 {[%emt 0:00:39]} Bh3 {[%emt 0:00:23]} 38. Ne4 {[%emt 0:00:27]} Rxh4 {[%emt 0:00:31]} 39. a5 {[%emt 0:00:32]} Be6 {[%emt 0:00:34]} 40. Nc5 {[%emt 0:00:29]} Bd5 {[%emt 0:00:29]} 41. Nd7+ {[%emt 0:00:40]} Ka8 {[%emt 0:01:12]} 42. Re7 {[%emt 0:00:25]} Bxb3 {[%emt 0:00:30]} 43. Re8+ {[%emt 0:00:22]} Kb7 {[%emt 0:00:21]} 44. Nc5+ {[%emt 0:00:21]} Kc6 {[%emt 0:00:23]} 45. Nxb3 {[%emt 0:00:21]} Rb4 {[%emt 0:00:22]} 46. Nd2 {[%emt 0:00:25]} Rb5 {[%emt 0:00:21]} 47. Nc4 {[%emt 0:00:27]} Rc5 {[%emt 0:00:21]} 48. Nxe5+ {[%emt 0:00:25]} Kb5 {[%emt 0:00:21]} 49. f4 {[%emt 0:00:23]} 1-0

[Event "EWIRCC 2019"]
[Site "Monte-Carlo"]
[Date "2019.12.01"]
[Round "8.4"]
[White "Sebag, Marie"]
[Black "Stefanova, Antoaneta"]
[Result "0-1"]
[ECO "C78"]
[WhiteElo "2443"]
[BlackElo "2481"]
[Annotator "ChessBase"]
[PlyCount "80"]
[EventDate "2019.11.28"]
[EventType "swiss"]
[EventCountry "MNC"]
[SourceTitle "playchess.com"]
[Source "ChessBase"]
[SourceQuality "1"]
[TimeControl "5400+30"]

1. e4 {[%emt 1:15:11]} e5 {[%emt 1:15:11]} 2. Nf3 {[%emt 0:00:22]} Nc6 {[%emt 0:00:21]} 3. Bb5 {[%emt 0:00:21]} a6 {[%emt 0:00:21]} 4. Ba4 {[%emt 0:00:22]} Nf6 {[%emt 0:00:26]} 5. O-O {[%emt 0:00:23]} Bc5 {[%emt 0:00:26]} 6. d3 {[%emt 0:01:39]} b5 {[%emt 0:01:08]} 7. Bb3 {[%emt 0:00:21]} d6 {[%emt 0:00:25]} 8. c3 {[%emt 0:00:44]} O-O {[%emt 0:01:04]} 9. Nbd2 {[%emt 0:00:26]} Bb6 {[%emt 0:01:02]} 10. h3 {[%emt 0:00:35]} Ne7 {[%emt 0:00:38]} 11. Re1 {[%emt 0:00:28]} Ng6 {[%emt 0:00:24]} 12. Nf1 {[%emt 0:00:22]} h6 {[%emt 0:00:52]} 13. Ng3 {[%emt 0:00:31]} Re8 {[%emt 0:00:24]} 14. Be3 {[%emt 0:02:39]} Bxe3 {[%emt 0:00:29]} 15. fxe3 {[%emt 0:00:22]} d5 {[%emt 0:00:48]} 16. exd5 {[%emt 0:02:22]} Nxd5 {[%emt 0:00:22]} 17. Nd2 {[%emt 0:02:49]} Be6 {[%emt 0:01:02]} 18. Nde4 {[%emt 0:00:30]} Nf6 {[%emt 0:01:56]} 19. Bxe6 {[%emt 0:02:34]} Rxe6 {[%emt 0:00:22]} 20. d4 {[%emt 0:00:30]} Nxe4 {[%emt 0:03:40]} 21. Nxe4 {[%emt 0:00:22]} Nh4 {[%emt 0:00:23]} 22. Re2 {[%emt 0:02:47]} Rg6 {[%emt 0:04:22]} 23. Qb3 {[%emt 0:01:43]} Qd7 {[%emt 0:00:54]} 24. Rf1 {[%emt 0:00:42]} Rf8 {[%emt 0:00:27]} 25. Kh2 {[%emt 0:00:51]} Kh7 {[%emt 0:02:57]} 26. Ref2 {[%emt 0:00:45]} f5 {[%emt 0:00:27]} 27. g3 {[%emt 0:00:49]} exd4 {[%emt 0:00:52]} 28. exd4 {[%emt 0:01:55]} Re8 {[%emt 0:00:37]} 29. Rf4 {[%emt 0:00:49]} Rxe4 {[%emt 0:01:13]} 30. Rxe4 {[%emt 0:00:26]} fxe4 {[%emt 0:00:24]} 31. Rf8 {[%emt 0:00:21]} Nf3+ {[%emt 0:01:00]} 32. Kg2 {[%emt 0:00:21]} Qe6 {[%emt 0:00:34]} 33. Qxe6 {[%emt 0:00:48]} Rxe6 {[%emt 0:00:21]} 34. Kf2 {[%emt 0:00:20]} e3+ {[%emt 0:00:35]} 35. Ke2 {[%emt 0:00:21]} Ng1+ {[%emt 0:00:21]} 36. Ke1 {[%emt 0:00:21]} Nxh3 {[%emt 0:00:23]} 37. b3 {[%emt 0:00:26]} Ng5 {[%emt 0:00:26]} 38. c4 {[%emt 0:00:24]} bxc4 {[%emt 0:00:24]} 39. bxc4 {[%emt 0:00:21]} Re4 {[%emt 0:00:22]} 40. Rd8 {[%emt 0:00:22]} Nf3+ {[%emt 0:00:38]} 0-1

[Event "EWIRCC 2019"]
[Site "Monte-Carlo"]
[Date "2019.12.01"]
[Round "8.5"]
[White "Gaponenko, Inna"]
[Black "Muzychuk, Anna"]
[Result "1/2-1/2"]
[ECO "C60"]
[WhiteElo "2427"]
[BlackElo "2543"]
[Annotator "ChessBase"]
[PlyCount "55"]
[EventDate "2019.11.28"]
[EventType "swiss"]
[EventCountry "MNC"]
[SourceTitle "playchess.com"]
[Source "ChessBase"]
[SourceQuality "1"]
[TimeControl "5400+30"]

1. e4 {[%emt 1:15:11]} e5 {[%emt 1:15:11]} 2. Nf3 {[%emt 0:00:21]} Nc6 {[%emt 0:00:20]} 3. Bb5 {[%emt 0:00:21]} g6 {[%emt 0:00:24]} 4. d4 {[%emt 0:01:36]} exd4 {[%emt 0:00:26]} 5. Bg5 {[%emt 0:00:22]} Be7 {[%emt 0:00:25]} 6. Bxe7 {[%emt 0:00:22]} Qxe7 {[%emt 0:00:27]} 7. Bxc6 {[%emt 0:00:21]} dxc6 {[%emt 0:00:30]} 8. Qxd4 {[%emt 0:00:22]} Nf6 {[%emt 0:00:49]} 9. Nc3 {[%emt 0:00:40]} Bg4 {[%emt 0:01:27]} 10. Nd2 {[%emt 0:00:22]} c5 {[%emt 0:00:51]} 11. Qe3 {[%emt 0:00:21]} O-O-O {[%emt 0:00:40]} 12. h3 {[%emt 0:00:34]} Be6 {[%emt 0:00:41]} 13. O-O-O {[%emt 0:00:23]} h5 {[%emt 0:00:43]} 14. Qg5 {[%emt 0:08:24]} Rhe8 {[%emt 0:04:30]} 15. Nf3 {[%emt 0:00:29]} Rxd1+ {[%emt 0:01:25]} 16. Rxd1 {[%emt 0:00:22]} Bd7 {[%emt 0:00:48]} 17. e5 {[%emt 0:01:53]} Nh7 {[%emt 0:00:21]} 18. Qxe7 {[%emt 0:03:43]} Rxe7 {[%emt 0:00:21]} 19. Nd5 {[%emt 0:00:21]} Re8 {[%emt 0:00:37]} 20. c4 {[%emt 0:00:48]} Bc6 {[%emt 0:03:27]} 21. b3 {[%emt 0:01:41]} b6 {[%emt 0:01:29]} 22. Kc2 {[%emt 0:00:24]} Nf8 {[%emt 0:00:55]} 23. Ng5 {[%emt 0:00:57]} Rxe5 {[%emt 0:02:32]} 24. Nxf7 {[%emt 0:00:22]} Re8 {[%emt 0:00:42]} 25. Ng5 {[%emt 0:01:20]} Re5 {[%emt 0:01:02]} 26. Nf7 {[%emt 0:00:27]} Re8 {[%emt 0:01:09]} 27. Ng5 {[%emt 0:00:21]} Re5 {[%emt 0:00:22]} 28. Nf7 {[%emt 0:00:22]} 1/2-1/2